bitfinex/quotes_BTCUSD_20250513
["timestamp","ask_amount","ask_price","bid_price","bid_amount"]
[1747154420006,0.62426776,104100.0,104090.0,0.002]
[1747154420441,1.22625932,104100.0,104090.0,0.002]
[1747154420884,1.24080017,104100.0,104090.0,0.002]
[1747154421116,1.2250437,104100.0,104090.0,0.002]
[1747154421362,1.5650437,104100.0,104090.0,0.001]
[1747154421799,0.20174829,104090.0,104080.0,0.002]
[1747154422044,0.63426338,104090.0,104080.0,0.002]
[1747154423332,0.63826338,104090.0,104080.0,0.002]
[1747154423955,0.37005769,104090.0,104080.0,0.002]
[1747154424172,0.27274829,104090.0,104080.0,0.002]
[1747154426152,0.30305733,104090.0,104080.0,0.002]
[1747154427249,0.27274829,104090.0,104080.0,0.002]
[1747154427462,0.54495398,104090.0,104080.0,0.002]
[1747154428592,0.64226338,104090.0,104080.0,0.002]
[1747154428814,0.98226338,104090.0,104080.0,0.002]
[1747154428999,1.0593904,104090.0,104080.0,0.002]
[1747154429246,1.1566998,104090.0,104080.0,0.00741194]
[1747154429471,1.3733798,104090.0,104080.0,0.00291343]
[1747154429690,1.2760704,104090.0,104080.0,0.00291343]
[1747154429899,1.19894338,104090.0,104080.0,0.00291343]
[1747154431915,1.21348423,104090.0,104080.0,0.00291343]
[1747154432342,1.21348423,104090.0,104040.0,0.76813597]
[1747154432343,0.03844146,104050.0,104040.0,0.76813597]
[1747154432595,0.24026722,104050.0,104040.0,0.85597905]
[1747154432815,0.23065729,104050.0,104040.0,0.84636746]
[1747154432999,0.23065729,104050.0,104040.0,0.85597905]
[1747154433170,0.23065729,104050.0,104040.0,0.84636746]
[1747154433339,0.22104709,104050.0,104040.0,0.86559073]
[1747154433758,0.22104709,104050.0,104040.0,0.87520223]
[1747154434007,0.22104709,104050.0,104040.0,0.88481364]
[1747154434214,0.21143661,104050.0,104040.0,0.75305806]
[1747154434424,0.26422604,104050.0,104040.0,0.75305874]
[1747154434651,0.26422604,104050.0,104040.0,0.76567042]
[1747154434905,0.26422604,104050.0,104040.0,0.78137387]
[1747154435110,0.26422604,104050.0,104040.0,0.79098546]
[1747154435316,0.26422604,104050.0,104040.0,0.77176219]
[1747154435527,0.20182604,104050.0,104040.0,0.77437378]
[1747154435735,0.21143652,104050.0,104040.0,0.78698519]
[1747154435944,0.21143652,104050.0,104040.0,0.78698528]
[1747154436372,0.02883135,104050.0,104040.0,1.05919097]
[1747154436588,0.01921847,104060.0,104050.0,0.21143652]
[1747154436806,0.02882812,104060.0,104050.0,0.48364221]
[1747154437008,0.22102492,104060.0,104050.0,0.47403173]
[1747154437232,0.21141582,104060.0,104050.0,0.20182604]
[1747154437462,0.25671399,104070.0,104060.0,0.1921968]
[1747154437463,0.27593172,104070.0,104060.0,0.1921968]
[1747154437875,0.2133957,104070.0,104060.0,0.19210847]
[1747154438086,0.01921866,104060.0,104050.0,0.49325251]
[1747154438331,0.02882831,104060.0,104050.0,0.60017211]
[1747154438552,0.03843768,104060.0,104050.0,0.59056191]
[1747154438824,0.23063448,104060.0,104050.0,0.30874592]
[1747154439003,0.23063522,104060.0,104050.0,0.28952468]
[1747154439216,0.23063522,104060.0,104050.0,0.30874592]
[1747154439684,0.02882858,104060.0,104050.0,0.31835631]
[1747154439914,0.03843832,104060.0,104050.0,0.3183564]
[1747154440150,0.03843832,104060.0,104050.0,0.29913535]
[1747154440365,0.03843832,104060.0,104050.0,0.30874592]
[1747154440588,0.04804816,104060.0,104050.0,0.3183564]
[1747154441399,0.04804816,104060.0,104050.0,0.30874592]
[1747154441614,0.04804816,104060.0,104050.0,0.3183564]
[1747154441822,0.04804816,104060.0,104050.0,0.31475175]
[1747154442093,0.03843842,104060.0,104050.0,0.30514127]
[1747154442242,0.23063522,104060.0,104050.0,0.31475194]
[1747154442442,0.23063522,104060.0,104050.0,0.32436251]
[1747154443269,0.19417834,104070.0,104050.0,0.59656745]
[1747154443493,0.21339607,104070.0,104060.0,0.1921968]
[1747154443717,0.22300461,104070.0,104060.0,0.20781237]
[1747154443975,0.22300461,104070.0,104060.0,0.20781247]
[1747154444192,0.22300461,104070.0,104060.0,0.19820263]
[1747154444413,0.22300461,104070.0,104060.0,0.19820234]
[1747154444629,0.002,104070.0,104060.0,0.59654583]
[1747154444852,0.002,104070.0,104060.0,0.66084583]
[1747154445062,0.004,104070.0,104060.0,0.66084583]
[1747154445950,0.01360808,104070.0,104060.0,0.66084583]
[1747154446183,0.004,104070.0,104060.0,0.66084583]
[1747154446403,0.006,104070.0,104060.0,0.66084583]
[1747154446835,0.006,104070.0,104060.0,0.87736583]
[1747154447909,0.006,104070.0,104060.0,1.23190668]
[1747154448123,0.006,104070.0,104060.0,2.25885737]
[1747154448329,0.006,104070.0,104060.0,2.47533737]
[1747154448546,0.006,104070.0,104060.0,2.89873737]
[1747154448980,0.004,104070.0,104060.0,2.89873737]
[1747154449189,0.002,104090.0,104080.0,0.59198273]
[1747154449441,0.002,104090.0,104080.0,1.39445782]
[1747154449666,0.002,104090.0,104080.0,1.40046336]
[1747154449903,0.02121275,104090.0,104080.0,1.36946336]
[1747154450081,0.01160633,104090.0,104080.0,1.36946336]
[1747154450355,0.002,104090.0,104080.0,1.36946336]
[1747154450554,0.002,104090.0,104080.0,1.40176336]
[1747154450976,0.01260624,104090.0,104080.0,1.40176336]
[1747154451186,0.01260624,104090.0,104080.0,1.36946336]
[1747154451803,0.02221257,104090.0,104080.0,1.36946336]
[1747154452036,0.02421257,104090.0,104080.0,1.36946336]
[1747154452263,0.01460624,104090.0,104080.0,1.36946336]
[1747154452668,0.02421266,104090.0,104080.0,1.36946336]
[1747154452891,0.01460624,104090.0,104080.0,1.36946336]
[1747154453127,0.02421266,104090.0,104080.0,1.36946336]
[1747154453342,0.02421257,104090.0,104080.0,1.36946336]
[1747154453553,0.01460624,104090.0,104080.0,1.36946336]
[1747154453758,0.01360624,104090.0,104080.0,1.36946336]
[1747154453992,0.02321266,104090.0,104080.0,1.36946336]
[1747154454201,0.02121266,104090.0,104080.0,1.36946336]
[1747154454582,0.01160624,104090.0,104080.0,1.36946336]
[1747154454805,0.02121257,104090.0,104080.0,1.36946336]
[1747154455941,0.01160642,104090.0,104080.0,1.36946336]
[1747154456704,0.02121302,104090.0,104080.0,1.35985602]
[1747154456918,0.01160642,104090.0,104080.0,1.36946336]
[1747154459532,0.02121302,104090.0,104080.0,1.36946336]
[1747154459739,0.01160642,104090.0,104080.0,1.36946336]
[1747154460408,0.002,104090.0,104080.0,1.43146336]
[1747154461695,0.002,104090.0,104080.0,1.41864664]
[1747154461900,0.002,104090.0,104080.0,1.46438749]
[1747154462521,0.002,104090.0,104080.0,2.57279218]
[1747154462690,0.002,104110.0,104100.0,1.13855165]
[1747154462927,0.002,104110.0,104100.0,1.36305536]
[1747154463140,0.002,104110.0,104100.0,1.3690609]
[1747154463844,0.002,104110.0,104100.0,1.64126659]
[1747154464052,0.002,104110.0,104100.0,2.65023667]
[1747154464494,0.002,104110.0,104100.0,2.26831267]
[1747154464833,0.002,104110.0,104100.0,0.75636529]
[1747154465041,0.002,104110.0,104100.0,1.39793098]
[1747154465458,0.04041913,104110.0,104100.0,1.06795789]
[1747154465672,0.04160439,104110.0,104100.0,1.3689809]
[1747154465894,0.01160439,104110.0,104100.0,1.3689809]
[1747154466111,0.2846185,104110.0,104100.0,0.63543789]
[1747154466327,0.3521415,104110.0,104100.0,0.29543789]
[1747154466746,0.36174663,104110.0,104100.0,0.30504403]
[1747154466968,0.36174663,104110.0,104100.0,0.57124418]
[1747154467176,0.28461961,104110.0,104100.0,0.56163804]
[1747154467591,0.08290998,104110.0,104100.0,0.57124418]
[1747154467810,0.08290961,104110.0,104100.0,0.58685348]
[1747154468033,0.09251483,104110.0,104100.0,0.59645944]
[1747154468259,0.28461933,104110.0,104100.0,0.59645944]
[1747154468669,0.08290961,104110.0,104100.0,0.59645944]
[1747154468890,0.28461915,104110.0,104100.0,0.57724743]
[1747154469090,0.28461915,104110.0,104100.0,0.58685348]
[1747154469291,0.28461915,104110.0,104100.0,0.57724743]
[1747154469512,0.26540954,104110.0,104100.0,0.10331265]
[1747154469728,0.26540954,104110.0,104100.0,0.2954356]
[1747154470644,0.07330448,104110.0,104100.0,0.58685348]
[1747154470853,0.09251409,104110.0,104100.0,0.59645925]
[1747154471053,0.29422363,104110.0,104100.0,0.59645935]
[1747154471261,0.29422363,104110.0,104100.0,0.2954356]
[1747154471505,0.27501448,104110.0,104100.0,0.00600325]
[1747154472943,0.72165659,104110.0,104100.0,0.00600325]
[1747154473642,0.28298301,104080.0,104070.0,0.53217776]
[1747154473885,0.28298301,104080.0,104070.0,0.1981824]
[1747154474092,0.28298301,104080.0,104070.0,0.5381824]
[1747154474305,0.09082314,104080.0,104070.0,0.34600464]
[1747154474489,0.09082314,104080.0,104070.0,0.00600464]
[1747154474701,0.09082314,104080.0,104070.0,0.01561355]
[1747154474912,0.09082314,104080.0,104070.0,0.62781924]
[1747154475118,0.09082314,104080.0,104070.0,0.63742797]
[1747154475361,0.08121478,104080.0,104070.0,0.65664515]
[1747154475567,0.10043002,104080.0,104070.0,0.64703661]
[1747154475769,0.10043002,104080.0,104070.0,0.65664506]
[1747154476094,0.10043085,104080.0,104070.0,0.63742806]
[1747154476305,0.09082351,104080.0,104070.0,0.62781915]
[1747154476512,0.09082351,104080.0,104070.0,0.3652221]
[1747154476715,0.09082351,104080.0,104070.0,0.62781924]
[1747154476926,0.09082351,104080.0,104070.0,0.63742806]
[1747154477135,0.09082351,104080.0,104070.0,0.62781924]
[1747154477341,0.09082351,104080.0,104070.0,0.63742806]
[1747154478104,0.08121496,104080.0,104070.0,0.6662536]
[1747154478281,0.09082276,104080.0,104070.0,0.65664543]
[1747154478524,0.10043075,104080.0,104070.0,0.65664543]
[1747154478738,0.062,104080.0,104070.0,0.61821033]
[1747154479394,0.062,104080.0,104070.0,0.62199952]
[1747154479602,0.0606,104090.0,104070.0,0.71930892]
[1747154479815,0.0606,104090.0,104080.0,0.27220569]
[1747154480123,0.0606,104090.0,104080.0,0.00983593]
[1747154480333,0.0606,104090.0,104080.0,0.37935102]
[1747154480747,0.0663,104100.0,104080.0,0.37935102]
[1747154482245,0.031,104090.0,104080.0,0.37935102]
[1747154482445,0.0642,104100.0,104080.0,0.37935102]
[1747154483554,0.0662,104100.0,104080.0,0.37935102]
[1747154483968,0.0682,104100.0,104080.0,0.37935102]
[1747154484426,0.0682,104100.0,104090.0,0.27220569]
[1747154484839,0.0682,104100.0,104090.0,0.28196416]
[1747154485244,0.0662,104100.0,104090.0,0.28196416]
[1747154485389,0.0662,104100.0,104090.0,0.00975847]
[1747154486245,0.0642,104100.0,104090.0,0.00975847]
[1747154486678,0.0662,104100.0,104090.0,0.00975847]
[1747154486882,0.06660153,104100.0,104090.0,0.00975847]
[1747154487087,0.06660183,104100.0,104090.0,0.00375383]
[1747154487288,0.06860196,104100.0,104090.0,0.00375383]
[1747154487567,0.0635,104080.0,104070.0,0.34]
[1747154487691,0.0635,104080.0,104070.0,0.70951509]
[1747154487912,0.0635,104080.0,104070.0,0.4373094]
[1747154488322,0.0635,104080.0,104070.0,0.44708851]
[1747154488736,0.07310799,104080.0,104070.0,0.7192942]
[1747154488940,0.0827157,104080.0,104070.0,0.72890302]
[1747154489344,0.07310744,104080.0,104070.0,0.72890302]
[1747154489557,0.10193012,104080.0,104070.0,0.73951175]
[1747154490056,0.10193012,104080.0,104070.0,0.73951204]
[1747154490057,0.09232222,104080.0,104070.0,0.73951204]
[1747154490270,0.10193012,104080.0,104070.0,0.94129879]
[1747154490470,0.10193012,104080.0,104070.0,0.95090733]
[1747154490675,0.02882222,104080.0,104070.0,0.96251514]
[1747154490882,0.0192146,104080.0,104070.0,0.96251514]
[1747154491124,0.00960716,104080.0,104070.0,0.96251514]
[1747154491303,0.02882185,104080.0,104070.0,0.96251514]
[1747154491935,0.02882185,104080.0,104070.0,0.95651081]
[1747154492141,0.0730066,104090.0,104080.0,0.2113753]
[1747154492347,0.09221981,104090.0,104080.0,0.58089066]
[1747154492560,0.00960624,104090.0,104080.0,0.59431091]
[1747154492768,0.24336257,104100.0,104090.0,0.2209615]
[1747154492769,0.0733055,104100.0,104090.0,0.2209615]
[1747154492982,0.08291118,104100.0,104090.0,0.48356077]
[1747154493192,0.05091118,104100.0,104090.0,0.49316719]
[1747154493391,0.09380795,104110.0,104100.0,0.20172891]
[1747154493602,0.28591236,104110.0,104100.0,0.47393469]
[1747154494262,0.28591236,104110.0,104100.0,0.48354046]
[1747154494263,0.08420273,104110.0,104100.0,0.48354046]
[1747154494513,0.28591227,104110.0,104100.0,0.46432864]
[1747154494671,0.2763076,104110.0,104100.0,0.19212295]
[1747154494911,0.2763076,104110.0,104100.0,0.19812729]
[1747154495456,0.2763076,104110.0,104100.0,0.00600434]
[1747154495683,0.2803076,104110.0,104100.0,0.00600434]
[1747154495903,0.2843076,104110.0,104100.0,0.00600434]
[1747154496128,0.2843076,104110.0,104100.0,0.00983293]
[1747154496372,0.2763076,104110.0,104100.0,0.20195588]
[1747154496616,0.07459788,104110.0,104100.0,0.48376771]
[1747154496852,0.0938074,104110.0,104100.0,0.60028912]
[1747154497074,0.10541262,104110.0,104100.0,0.60989499]
[1747154497282,0.10541262,104110.0,104100.0,0.60028912]
[1747154497718,0.03490721,104110.0,104100.0,0.60028912]
[1747154497964,0.07621225,104110.0,104100.0,0.60028912]
[1747154498429,0.11671747,104110.0,104100.0,0.60989499]
[1747154498634,0.11671747,104110.0,104100.0,0.61950076]
[1747154498872,0.11671747,104110.0,104100.0,0.60028912]
[1747154499579,0.11671747,104110.0,104100.0,0.60989499]
[1747154499822,0.11671738,104110.0,104100.0,0.61950076]
[1747154500054,0.10711225,104110.0,104100.0,0.61950076]
[1747154500532,0.10711225,104110.0,104100.0,0.61950012]
[1747154500533,0.0156976,104110.0,104100.0,0.61950012]
[1747154500783,0.03490721,104110.0,104100.0,0.8349003]
[1747154501011,0.02530227,104110.0,104100.0,0.82529425]
[1747154501247,0.03490712,104110.0,104100.0,0.83489984]
[1747154501505,0.03490712,104110.0,104100.0,0.82529425]
[1747154501751,0.04451216,104110.0,104100.0,0.81568857]
[1747154501964,0.03490712,104110.0,104100.0,0.81568857]
[1747154502191,0.03490712,104110.0,104100.0,0.82529425]
[1747154502422,0.03490712,104110.0,104100.0,0.83489984]
[1747154502661,0.09670712,104110.0,104100.0,0.8060828]
[1747154502899,0.10631216,104110.0,104100.0,0.81568857]
[1747154503144,0.09670712,104110.0,104100.0,0.82529425]
[1747154503369,0.10431216,104110.0,104100.0,0.81568857]
[1747154504035,0.10231216,104110.0,104100.0,0.81568857]
[1747154504315,0.10231216,104110.0,104100.0,0.8060828]
[1747154504616,0.10231216,104110.0,104100.0,0.81568857]
[1747154505239,0.08310227,104110.0,104100.0,0.82529416]
[1747154505443,0.02130227,104110.0,104100.0,0.83489966]
[1747154505906,0.00209312,104110.0,104100.0,1.43749985]
[1747154506117,0.00209312,104110.0,104100.0,1.5263462]
[1747154506329,0.00209312,104110.0,104100.0,1.7421862]
[1747154507624,0.00209312,104110.0,104100.0,1.7441862]
[1747154507758,0.00209312,104110.0,104100.0,1.7451862]
[1747154510822,0.0326,104130.0,104120.0,0.56089784]
[1747154510823,0.002,104130.0,104120.0,0.56089784]
[1747154511088,0.02120519,104130.0,104120.0,0.92080928]
[1747154511326,0.18083831,104130.0,104120.0,0.91720978]
[1747154511557,0.35370072,104130.0,104120.0,0.00958019]
[1747154511790,0.35370072,104130.0,104120.0,0.20166624]
[1747154512023,0.34609781,104130.0,104120.0,0.00958019]
[1747154512497,0.7156129,104130.0,104120.0,0.00357585]
[1747154512731,1.28727375,104130.0,104120.0,0.00357585]
[1747154512948,0.28256178,104090.0,104080.0,0.43236645]
[1747154513182,0.28256178,104090.0,104080.0,0.43245957]
[1747154513913,0.28256178,104090.0,104080.0,0.70466526]
[1747154514810,0.07120624,104090.0,104080.0,0.76906817]
[1747154515064,0.29434585,104100.0,104090.0,0.19214141]
[1747154515281,0.07340568,104100.0,104090.0,0.5616565]
[1747154515546,0.09261677,104100.0,104090.0,0.57726677]
[1747154515801,0.09261677,104100.0,104090.0,0.58687356]
[1747154516040,0.29434568,104100.0,104090.0,0.29545411]
[1747154516326,0.28574037,104100.0,104090.0,0.29545411]
[1747154517241,0.27613478,104100.0,104090.0,0.0060033]
[1747154517697,0.25624141,104090.0,104080.0,0.45831094]
[1747154517910,0.27545489,104090.0,104080.0,0.73051663]
[1747154518128,0.09292018,104090.0,104080.0,0.74012443]
[1747154518347,0.09291945,104090.0,104080.0,0.74012453]
[1747154518563,0.09291945,104090.0,104080.0,0.74973215]
[1747154518792,0.0641,104090.0,104080.0,0.7689472]
[1747154519018,0.103223,104100.0,104090.0,0.21135545]
[1747154519216,0.30495209,104100.0,104090.0,0.4703504]
[1747154519422,0.29534669,104100.0,104090.0,0.4703504]
[1747154519626,0.08401108,104100.0,104090.0,0.48956444]
[1747154519831,0.09461704,104100.0,104090.0,0.47995747]
[1747154520054,0.10422318,104100.0,104090.0,0.47995747]
[1747154520257,0.08501108,104100.0,104090.0,0.49917114]
[1747154520487,0.09561695,104100.0,104090.0,0.49917114]
[1747154520890,0.10522309,104100.0,104090.0,0.4703504]
[1747154521602,0.09561685,104100.0,104090.0,0.48956426]
[1747154521830,0.08601108,104100.0,104090.0,0.49917086]
[1747154522039,0.09561704,104100.0,104090.0,0.57726687]
[1747154522627,0.10522318,104100.0,104090.0,0.5676598]
[1747154522864,0.10522318,104100.0,104090.0,0.57726687]
[1747154523373,0.10522318,104100.0,104090.0,0.5676598]
[1747154523374,0.29734613,104100.0,104090.0,0.5676598]
[1747154523600,0.27813505,104100.0,104090.0,0.29545411]
[1747154526997,0.27813505,104100.0,104090.0,0.5676598]
[1747154528046,0.27813505,104100.0,104090.0,0.58687366]
[1747154528047,0.07640568,104100.0,104090.0,0.58687366]
[1747154528293,0.29734585,104100.0,104090.0,0.57726687]
[1747154528472,0.1052229,104100.0,104090.0,0.57726687]
[1747154528701,0.29734585,104100.0,104090.0,0.5676598]
[1747154528897,0.29734659,104100.0,104090.0,0.5676598]
[1747154529576,0.26852909,104100.0,104090.0,0.0060033]
[1747154530483,0.26704829,104090.0,104080.0,0.22622615]
[1747154530672,0.26704829,104090.0,104080.0,0.22022285]
[1747154530882,0.26704829,104090.0,104080.0,0.02806499]
[1747154531542,0.26704829,104090.0,104080.0,0.22622936]
[1747154531749,0.26704829,104090.0,104080.0,0.03506949]
[1747154532194,0.26704829,104090.0,104080.0,0.22722936]
[1747154532647,0.26704829,104090.0,104080.0,0.03506949]
[1747154532898,0.53925398,104090.0,104080.0,0.00909762]
[1747154533111,0.36435769,104090.0,104080.0,0.00309312]
[1747154533539,0.63656338,104090.0,104080.0,0.00309312]
[1747154533957,0.36435769,104090.0,104080.0,0.00309312]
[1747154534384,0.36435769,104090.0,104080.0,0.00209312]
[1747154534812,0.36735769,104090.0,104080.0,0.00209312]
[1747154535837,0.37035769,104090.0,104080.0,0.00209312]
[1747154536318,0.27304829,104090.0,104080.0,0.00209312]
[1747154536997,0.27304829,104090.0,104080.0,0.19425299]
[1747154537219,0.09952,104090.0,104080.0,0.48567447]
[1747154537403,0.29166187,104090.0,104080.0,0.46645868]
[1747154537879,0.28205527,104090.0,104080.0,0.46645868]
[1747154538093,0.27905527,104090.0,104080.0,0.46645868]
[1747154538306,0.28005527,104090.0,104080.0,0.46645868]
[1747154538761,0.01060624,104090.0,104080.0,0.59859565]
[1747154538984,0.03081936,104090.0,104080.0,0.5889884]
[1747154539211,0.04042633,104090.0,104080.0,0.5889884]
[1747154539391,0.04042633,104090.0,104080.0,0.59435271]
[1747154539605,0.04042624,104090.0,104080.0,0.59435271]
[1747154539748,0.26436838,104090.0,104080.0,0.5751371]
[1747154539962,0.27805526,104090.0,104080.0,0.30293141]
[1747154540165,0.26844838,104090.0,104080.0,0.30293141]
[1747154541016,0.08591312,104090.0,104080.0,0.58474509]
[1747154541216,0.09552,104090.0,104080.0,0.56977279]
[1747154541454,0.29726838,104090.0,104080.0,0.2975671]
[1747154541661,0.10512697,104090.0,104080.0,0.30298307]
[1747154541862,0.11473404,104090.0,104080.0,0.30298307]
[1747154542875,0.28766233,104090.0,104080.0,0.30298307]
[1747154543070,0.30817952,104090.0,104080.0,0.0135138]
[1747154543242,0.27805545,104090.0,104080.0,0.0135138]
[1747154546936,0.27805545,104090.0,104080.0,0.00750909]
[1747154554152,0.27805545,104090.0,104080.0,0.00574977]
[1747154556228,0.37536485,104090.0,104080.0,0.00574977]
[1747154558911,0.37536485,104090.0,104080.0,0.01175519]
[1747154560694,0.37536485,104090.0,104080.0,0.00574977]
[1747154562554,0.27805545,104090.0,104080.0,0.00574977]
[1747154566147,0.27805545,104090.0,104080.0,0.01175471]
[1747154566352,0.002,104090.0,104080.0,0.47612027]
[1747154566562,0.22296178,104090.0,104080.0,0.47612027]
[1747154566768,0.21335508,104090.0,104080.0,0.20391458]
[1747154567000,0.20374829,104090.0,104080.0,0.20391458]
[1747154567454,0.26204829,104090.0,104080.0,0.01175471]
[1747154568719,0.26204829,104090.0,104080.0,0.01356347]
[1747154568890,0.23404829,104090.0,104080.0,0.01356347]
[1747154569437,0.26434829,104090.0,104080.0,0.01356347]
[1747154571190,0.20374829,104090.0,104080.0,0.20572334]
[1747154571387,0.20374829,104090.0,104080.0,0.50802903]
[1747154571590,0.22296122,104090.0,104080.0,0.51645161]
[1747154571799,0.23256819,104090.0,104080.0,0.51645161]
[1747154572240,0.22296186,104090.0,104080.0,0.51645161]
[1747154572445,0.002,104090.0,104080.0,0.64258387]
[1747154572643,0.002,104090.0,104080.0,0.98258387]
[1747154573113,0.02121266,104090.0,104080.0,0.98258387]
[1747154573674,0.002,104090.0,104080.0,0.98258387]
[1747154573912,0.01160624,104090.0,104080.0,0.98258387]
[1747154574122,0.02121266,104090.0,104080.0,0.98258387]
[1747154574571,0.03081926,104090.0,104080.0,0.98258387]
[1747154574753,0.01921266,104090.0,104080.0,0.98258387]
[1747154575420,0.02881936,104090.0,104080.0,0.91407662]
[1747154575636,0.02881936,104090.0,104080.0,0.90446891]
[1747154575863,0.21135527,104090.0,104080.0,0.90267496]
[1747154576109,0.21135527,104090.0,104080.0,0.63046927]
[1747154576325,0.22096178,104090.0,104080.0,0.91228295]
[1747154576545,0.22096178,104090.0,104080.0,0.92189085]
[1747154577405,0.22096178,104090.0,104080.0,0.91228295]
[1747154577615,0.22096178,104090.0,104080.0,0.92189085]
[1747154577840,0.22096178,104090.0,104080.0,0.90267496]
[1747154578047,0.22096178,104090.0,104080.0,0.91228276]
[1747154578479,0.22096178,104090.0,104080.0,0.90267496]
[1747154579114,0.22096178,104090.0,104080.0,0.91228276]
[1747154579331,0.02882027,104090.0,104080.0,0.92189047]
[1747154580358,0.02882027,104090.0,104080.0,0.91228276]
[1747154580559,0.02882027,104090.0,104080.0,0.92189047]
[1747154580966,0.0192133,104090.0,104080.0,0.92189047]
[1747154581170,0.02882018,104090.0,104080.0,0.93149809]
[1747154581400,0.02882018,104090.0,104080.0,0.29046927]
[1747154581605,0.02882018,104090.0,104080.0,0.001]
[1747154581606,0.27225696,104090.0,104080.0,0.001]
[1747154581835,0.22098282,104080.0,104070.0,0.45499236]
[1747154582038,0.03843094,104080.0,104070.0,0.45513735]
[1747154582244,0.23059081,104080.0,104070.0,0.44552862]
[1747154582450,0.23059081,104080.0,104070.0,0.45513753]
[1747154582663,0.21137566,104080.0,104070.0,0.45513753]
[1747154583071,0.21137566,104080.0,104070.0,0.28195959]
[1747154583284,0.21012095,104080.0,104070.0,0.27235068]
[1747154583688,0.6637299,104080.0,104070.0,0.00614984]
[1747154583907,0.61765366,104080.0,104070.0,0.00814984]
[1747154584140,0.71496306,104080.0,104070.0,0.01014984]
[1747154584617,0.71496306,104080.0,104070.0,0.00214499]
[1747154584862,0.03844877,104030.0,104020.0,0.61151555]
[1747154585161,0.230701,104030.0,104020.0,0.88681811]
[1747154585383,0.03844877,104030.0,104020.0,1.2454416]
[1747154585610,0.02883616,104030.0,104020.0,1.2454416]
[1747154585832,0.03844858,104030.0,104020.0,0.4781617]
[1747154586039,0.03844858,104030.0,104020.0,0.82777458]
[1747154586242,0.02892915,104030.0,104020.0,0.82777458]
[1747154586452,0.03854157,104030.0,104020.0,0.8498315]
[1747154586893,0.03854157,104030.0,104020.0,0.8538315]
[1747154587106,0.03854148,104030.0,104020.0,0.8538315]
[1747154587526,0.03854148,104030.0,104020.0,0.8568315]
[1747154588698,0.02892906,104030.0,104020.0,0.8568315]
[1747154588902,0.03854129,104030.0,104020.0,0.8568315]
[1747154589737,0.03854129,104030.0,104020.0,0.39045203]
[1747154589738,0.21156997,104030.0,104020.0,0.39045203]
[1747154590171,0.21156997,104030.0,104020.0,0.05045203]
[1747154590619,0.27126997,104030.0,104020.0,0.05045203]
[1747154591472,0.27126997,104030.0,104020.0,0.04645203]
[1747154591893,0.27326997,104030.0,104020.0,0.04345203]
[1747154592117,0.27526997,104030.0,104020.0,0.04044848]
[1747154593027,0.27526997,104030.0,104020.0,0.03432253]
[1747154593936,0.27526997,104030.0,104020.0,0.24581984]
[1747154594127,0.21556997,104030.0,104020.0,0.23620668]
[1747154594377,0.20595764,104030.0,104020.0,0.22659324]
[1747154594579,0.22518239,104030.0,104020.0,0.24582021]
[1747154594831,0.00409299,104030.0,104020.0,0.54686529]
[1747154595067,0.02331682,104030.0,104020.0,0.64417469]
[1747154595290,0.04254157,104030.0,104020.0,0.64417469]
[1747154595517,0.05215408,104030.0,104020.0,0.64417479]
[1747154595749,3.78577653,104030.0,104020.0,0.64056903]
[1747154595981,3.76655215,104030.0,104020.0,0.62134252]
[1747154596208,3.75693973,104030.0,104020.0,0.13763915]
[1747154596698,3.75493973,104030.0,104020.0,0.13763915]
[1747154597678,3.77416458,104030.0,104020.0,0.62134215]
[1747154597890,3.77416458,104030.0,104020.0,0.60932899]
[1747154598332,3.75293983,104030.0,104020.0,0.40744484]
[1747154598556,3.75293983,104030.0,104020.0,0.60932899]
[1747154598780,3.76255216,104030.0,104020.0,0.61894215]
[1747154599170,3.57991188,104030.0,104020.0,0.62855503]
[1747154599602,3.56068677,104030.0,104020.0,0.62855503]
[1747154599858,3.57029873,104030.0,104020.0,0.96855503]
[1747154600093,3.58952311,104030.0,104020.0,0.96855503]
[1747154600370,3.58952311,104030.0,104020.0,0.96855495]
[1747154600570,3.57991078,104030.0,104020.0,0.96855495]
[1747154601091,3.58952302,104030.0,104020.0,0.96855495]
[1747154601318,3.79138841,104030.0,104020.0,0.96855514]
[1747154601474,3.59913599,104030.0,104020.0,0.987781]
[1747154602456,3.59913599,104030.0,104020.0,0.96855514]
[1747154602665,3.76255197,104030.0,104020.0,0.03792967]
[1747154602870,3.79679436,104030.0,104020.0,0.03792967]
[1747154603074,3.76255197,104030.0,104020.0,0.03192253]
[1747154604066,3.76255197,104030.0,104020.0,0.03793063]
[1747154604442,3.76255197,104030.0,104020.0,0.03192253]
[1747154605277,0.21151737,104010.0,104000.0,0.42803252]
[1747154605472,0.20190347,104010.0,104000.0,0.38659837]
[1747154605707,0.20190347,104010.0,104000.0,0.58852125]
[1747154605916,0.20190347,104010.0,104000.0,0.94414492]
[1747154606137,0.20190347,104010.0,104000.0,0.9375341]
[1747154606548,0.20190347,104010.0,104000.0,0.92045082]
[1747154606752,0.20190347,104010.0,104000.0,0.92445082]
[1747154607192,0.20190347,104010.0,104000.0,0.92745082]
[1747154607590,0.1922892,104010.0,104000.0,0.92745083]
[1747154608423,0.1922892,104010.0,104000.0,0.72552795]
[1747154608637,0.1922892,104010.0,104000.0,0.93706612]
[1747154609499,0.1922892,104010.0,104000.0,0.95939942]
[1747154609922,0.1922892,104010.0,104000.0,0.94016894]
[1747154610093,0.1922892,104010.0,104000.0,0.94978432]
[1747154610359,0.1922892,104010.0,104000.0,0.95939961]
[1747154610485,0.1922892,104010.0,104000.0,0.33757854]
[1747154610687,0.1922892,104010.0,104000.0,0.60978423]
[1747154610891,0.1922892,104010.0,104000.0,0.13565556]
[1747154614119,0.1922892,104010.0,104000.0,0.03834616]
[1747154614120,0.19469281,104010.0,104000.0,0.03834616]
[1747154614341,0.1922892,104010.0,104000.0,0.03834616]
[1747154614740,0.22117343,103990.0,103980.0,0.76593814]
[1747154614941,0.22117343,103990.0,103980.0,1.20324754]
[1747154615173,0.23078955,103990.0,103980.0,1.20324773]
[1747154615293,0.00961547,103990.0,103980.0,1.21286431]
[1747154615498,0.00961492,104000.0,103990.0,0.21155832]
[1747154615722,0.23076773,104000.0,103990.0,0.58107341]
[1747154615922,0.23091282,104000.0,103990.0,0.59068925]
[1747154616162,0.23091282,104000.0,103990.0,0.58107341]
[1747154616367,0.23091282,104000.0,103990.0,0.60367258]
[1747154616570,0.22129818,104000.0,103990.0,0.32185077]
[1747154616751,0.22129818,104000.0,103990.0,0.59405646]
[1747154617006,0.22129818,104000.0,103990.0,0.60367258]
[1747154617709,0.22129818,104000.0,103990.0,0.60567258]
[1747154618142,0.22129818,104000.0,103990.0,0.60767258]
[1747154619278,0.22129818,104000.0,103990.0,0.59805646]
[1747154619886,0.22129818,104000.0,103990.0,0.39611407]
[1747154620097,0.21168326,104000.0,103990.0,0.31623456]
[1747154620313,0.20206816,104000.0,103990.0,0.31623456]
[1747154620514,0.19245278,104000.0,103990.0,0.12390838]
[1747154621399,0.23112698,104000.0,103990.0,0.02659898]
[1747154621861,0.19245278,104000.0,103990.0,0.02659898]